Cogmind - Beta 12 *** ADVENTURER MODE // 2023.12.03 @ 19:05:10 Player: Ty Piggbottom Result: Destroyed by D-53 Grenadier with Mini Grenade Launcher Performance ------------- Evolutions (0) 0 Regions Visited (2) 400 Robots Destroyed (39) 195 Value Destroyed (649) 649 Prototype IDs (5) 100 Alien Tech Used (0) 0 Bonus (0) 0 TOTAL SCORE: 1344 Bonus ------- None Cogmind --------- Core Integrity 0/250 Matter 256/300 Energy 100/100 System Corruption 0% Temperature Cool (0) Movement Core (200) Ox3 Location -10/Mines Parts ------- > --- POWER (1) -------- (None) > --- PROPULSION (2) --- (None) > --- UTILITY (2) ------ Small Storage Unit > --- WEAPON (2) ------- Medium Laser Beam Cannon > --- INVENTORY (8) ---- Improved Hover Unit Improved Hover Unit Backup Plating I Improved Medium Laser Improved Medium Laser Grenade Launcher EMP Trap Peak State ------------ > --- POWER ------------ Light Ion Engine > --- PROPULSION ------- Improved Hover Unit Improved Hover Unit > --- UTILITY ---------- Heat Sink Small Storage Unit > --- WEAPON ----------- Improved Medium Laser Improved Medium Laser > --- INVENTORY -------- Improved Hover Unit Improved Hover Unit Medium Laser Beam Cannon Beam Cannon Assault Rifle Assault Rifle Grenade Launcher [Rating: 14] Favorites ----------- Power Light Ion Engine Engine Light Ion Engine Propulsion Aluminum Leg Treads Light Treads Leg Aluminum Leg Wheel Wheel Hover Unit Improved Hover Unit Utility Small Storage Unit Device Heat Sink Storage Small Storage Unit Processor Signal Interpreter Protection Propulsion Shielding Weapon Beam Cannon Energy Gun EM Pulse Gun Energy Cannon Beam Cannon Ballistic Gun Assault Rifle Launcher Grenade Launcher Special Weapon Mining Laser Special Melee Weapon Datajack Build | -11 -10 -10 ------- Run | Jun Mat Min Slots Evolved . | . . . Power . | . . . Propulsion . | . . . Utility . | . . . Weapon . | . . . Parts Attached 73 | 11 52 10 Power 5 | 1 4 . Engine 5 | 1 4 . Core . | . . . Reactor . | . . . Propulsion 16 | 5 9 2 Treads 2 | 2 . . Leg 4 | . 4 . Wheel 4 | 3 1 . Hover 6 | . 4 2 Flight . | . . . Utility 23 | 3 18 2 Device 5 | . 4 1 Storage 13 | 3 10 . Processor 2 | . 2 . Hackware . | . . . Protection 3 | . 2 1 Artifact . | . . . Weapon 29 | 2 21 6 Energy Gun 8 | 2 5 1 Energy Cannon 10 | . 6 4 Ballistic Gun 7 | . 7 . Ballistic Cannon . | . . . Launcher 2 | . 1 1 Special Weapon 1 | . 1 . Impact Weapon . | . . . Slashing Weapon . | . . . Piercing Weapon . | . . . Special Melee Weapon 1 | . 1 . Unidentified Prototypes 1 | . 1 . Parts Lost 7 | . 2 5 Power 2 | . 1 1 Propulsion 2 | . . 2 Utility 1 | . . 1 Weapon 2 | . 1 1 Highest Loss Streak 5 | . 1 5 To Critical Strikes . | . . . Average Slot Usage (%) 97 | . 97 98 Engine 13 | . 13 14 Leg 16 | . 18 . Wheel 4 | . 5 . Hover 7 | . 3 28 Device 3 | . 3 8 Storage 17 | . 18 14 Processor 3 | . 4 . Protection 1 | . . 5 Energy Gun 6 | . 4 14 Energy Cannon 17 | . 18 11 Ballistic Gun 3 | . 3 . Naked Turns . | . . . Heaviest Build 51 | 14 51 14 Greatest Support 40 | 40 20 14 Greatest Overweight (x) 3 | . 2 3 Average Overweight (x) . | . . . Largest Inventory Capacity 20 | 8 20 8 Average Capacity 8 | 7 8 8 Most Carried 15 | 8 15 8 Average Carried 7 | 6 7 7 Final Capacity 8 | 8 8 8 Final Carried 7 | 7 7 7 Class Distribution -------------------- 96% | Mutant 3% | Scavenger-Mutant Dominant Class ---------------- Mutant | -10/Materials Mutant | -10/Mines Resources | -11 -10 -10 ----------- Run | Jun Mat Min Matter Collected 1082 | 335 654 93 Remotely . | . . . Salvage Created 1580 | 103 939 538 Parts 82 | 8 53 21 Haulers Intercepted 2 | . 2 . Recyclers Shooed 5 | . 1 4 Parts Field Recycled . | . . . Retrieved Matter . | . . . Parts Self-Destructed . | . . . Prevented . | . . . Kills | -11 -10 -10 ------- Run | Jun Mat Min Combat Hostiles Destroyed 15 | . 12 3 Guns 4 | . 3 1 Cannons 10 | . 8 2 Classes Destroyed 7 | 3 4 . Worker 8 | 1 6 1 Tunneler 3 | 1 1 1 Hauler 2 | . 2 . Recycler 8 | 1 2 5 Watcher 3 | . 3 . Swarmer 3 | . 3 . Grunt 12 | . 9 3 Best Kill Streak 5 | 2 5 4 Combat Bots Only 3 | . 3 3 Max Kills in Single Turn 2 | 1 2 2 Gunslinging . | . . . Exploded . | . . . Melee . | . . . Uniques/NPCs Destroyed . | . . . Combat | -11 -10 -10 -------- Run | Jun Mat Min Damage Taken 932 | . 334 598 Core 265 | . 66 199 Absorbed by Shields . | . . . Redirected to Shielding 30 | . . 30 Regen/Repaired (Parts) 171 | . 171 . Core Remaining (%) 100 | 100 . . Volleys Fired 85 | 3 58 24 Largest 2 | 2 2 2 Hottest 120 | 80 120 110 Shots Fired 163 | 6 114 43 Gun 72 | 6 46 20 Cannon 83 | . 64 19 Launcher 7 | . 3 4 Special 1 | . 1 . Kinetic 16 | . 16 . Thermal 104 | . 65 39 Explosive 7 | . 3 4 Electromagnetic 36 | 6 30 . Robot Hit Streak 21 | 4 21 13 Robot Miss Streak 4 | . 4 2 Penetration Max . | . . . Secondary Targets . | . . . Shots Hit Robots 104 | 4 74 26 Core Hits 53 | 3 31 19 Critical Kills . | . . . Critical Parts Destroyed . | . . . Critical Strikes . | . . . Melee Attacks 7 | . 7 . Impact . | . . . Slashing . | . . . Piercing . | . . . Sneak Attacks . | . . . Combat Hostiles . | . . . Follow-up Attacks . | . . . Damage Inflicted 1821 | 82 1258 481 Guns 722 | 55 518 149 Cannons 839 | . 559 280 Explosions 242 | 27 163 52 Melee . | . . . Ramming 18 | . 18 . Kinetic 167 | . 167 . Thermal 1079 | 27 623 429 Explosive 151 | . 99 52 Electromagnetic 406 | 55 351 . Impact . | . . . Slashing . | . . . Piercing . | . . . Highest Corruption . | . . . Average Corruption . | . . . Corruption Purged . | . . . Corruption Blocked . | . . . Overload Shots . | . . . Overflow Damage 6 | . 2 4 Projectiles 6 | . 2 4 Explosions . | . . . Melee . | . . . Knockbacks 1 | . 1 . Impact 1 | . 1 . Kinetic . | . . . Secondary . | . . . Self-Inflicted Damage 8 | . . 8 Shots 1 | . . 1 Rammed . | . . . Targets Rammed 5 | . 5 . Kicked 5 | . 5 . Crushed . | . . . Highest Temperature 252 | 18 223 252 Average Temperature 77 | 8 75 88 Received Heat Transfer 363 | . 195 168 Siege Activations . | . . . Robots Corrupted 1 | . 1 . Combat Hostiles 1 | . 1 . Parts Fried 2 | . 2 . Impact Corruptions . | . . . Robots Melted . | . . . Combat Hostiles . | . . . Parts Melted 3 | . . 3 Heat Transferred 2320 | 50 1234 1036 Parts Sabotaged . | . . . Parts Stolen . | . . . Parts Stripped . | . . . Power Chain Reactions 2 | 1 1 . Missiles Intercepted . | . . . Alert | -11 -10 -10 ------- Run | Jun Mat Min Peak Influence 241 | 15 177 241 Initial 8 | . 8 . Average 60 | 5 62 99 Maximum Alert Level 1 | . . 1 Low Security (%) 97 | 100 100 79 Level 1 2 | . . 20 Level 2 . | . . . Level 3 . | . . . Level 4 . | . . . Level 5 . | . . . High Security . | . . . Max Security . | . . . Squads Dispatched 1 | . 1 . Investigation 1 | . 1 . Extermination . | . . . Reinforcement . | . . . Assault . | . . . Garrison . | . . . Intercept . | . . . Searches Triggered . | . . . Construction Impeded . | . . . Haulers Reinforced . | . . . Active Scanning Responses . | . . . Cargo Convoy Interrupts . | . . . Stealth | -11 -10 -10 --------- Run | Jun Mat Min Distress Signals 1 | . 1 . Communications Jammed . | . . . Distress Signals . | . . . Times Spotted 37 | . 16 21 Peak Tracking Total 13 | . 3 13 Tactical Retreats 1 | . . 1 Traps | -11 -10 -10 ------- Run | Jun Mat Min Traps Triggered 2 | . 2 . Indirectly . | . . . Trap Hack Attempts . | . . . Triggered . | . . . Disarmed . | . . . Reprogrammed . | . . . Reused . | . . . Traps Extracted . | . . . Installed . | . . . Triggered . | . . . Most Traps Carried 1 | . . 1 Machines | -11 -10 -10 ---------- Run | Jun Mat Min Machines Disabled 3 | . 3 . Max in Single Turn 1 | . 1 . Machines Repaired . | . . . Machines Sabotaged . | . . . Overloaded Fab Kills . | . . . Hacking | -11 -10 -10 --------- Run | Jun Mat Min Machines Accessed 11 | . 11 . Terminals 8 | . 8 . Fabricators . | . . . Repair Stations 1 | . 1 . Recycling Units 2 | . 2 . Scanalyzers . | . . . Garrison Access . | . . . Total Hacks 44 | . 44 . Successful 31 | . 31 . Failed 13 | . 13 . Catastrophic 2 | . 2 . Database Lockouts . | . . . Manual 19 | . 19 . Terminals 31 | . 31 . Fabricators . | . . . Repair Stations 7 | . 7 . Recycling Units 6 | . 6 . Scanalyzers . | . . . Garrison Access . | . . . Terminal Hacks 9 | . 9 . Prototype ID Bank 2 | . 2 . Branch Access Points 1 | . 1 . Terminal Index 1 | . 1 . Locate Traps 2 | . 2 . Hauler Manifests 1 | . 1 . Registered Components 1 | . 1 . Zone Layout 1 | . 1 . Fabricator Hacks . | . . . Repair Station Hacks 7 | . 7 . Scan Component 3 | . 3 . Repair 3 | . 3 . Refit 1 | . 1 . Recycling Unit Hacks 3 | . 3 . Report Inventory 2 | . 2 . Retrieve Components 1 | . 1 . Scanalyzer . | . . . Garrison Access Hacks . | . . . Unauthorized Hacks 12 | . 12 . Terminals 9 | . 9 . Botnet 8 | . 8 . Operators 1 | . 1 . Fabricators . | . . . Repair Stations . | . . . Recycling Units 3 | . 3 . Reject 2 | . 2 . Mask 1 | . 1 . Scanalyzers . | . . . Garrison Access . | . . . Data Cores Recovered . | . . . Used . | . . . Hacking Detections 10 | . 10 . Full Trace Events 1 | . 1 . Feedback Events . | . . . Feedback Blocked . | . . . Robot Schematics Acquired . | . . . Robots Built . | . . . Authchips . | . . . Time . | . . . Total Robot Build Rating . | . . . Part Schematics Acquired . | . . . Parts Built . | . . . Authchips . | . . . Time . | . . . Total Part Build Rating . | . . . Parts Repaired 3 | . 3 . Time 84 | . 84 . Parts Recycled . | . . . Recycled Matter . | . . . Retrieved Matter . | . . . Retrieved Components 2 | . 2 . Parts Scanalyzed . | . . . Part Schematics Acquired . | . . . Parts Damaged . | . . . Bothacking | -11 -10 -10 ------------ Run | Jun Mat Min Used RIF Installer . | . . . Robots Hacked . | . . . Non-combat . | . . . Combat . | . . . Robot Hacks Applied . | . . . Relay Couplers Released . | . . . Fabnet Peak Effective % . | . . . Robots Rewired . | . . . Allies Hacked . | . . . Hacks Repelled . | . . . Allies | -11 -10 -10 -------- Run | Jun Mat Min Total Allies . | . . . Largest Group . | . . . Highest-Rated Group . | . . . Highest-Rated Ally . | . . . Total Orders . | . . . Ally Attacks . | . . . Total Damage . | . . . Kills . | . . . Allies Corrupted . | . . . Allies Melted . | . . . Intel | -11 -10 -10 ------- Run | Jun Mat Min Robot Analysis Total . | . . . Derelict Logs Recovered 1 | . . 1 Drone Launches . | . . . Drone Recoveries . | . . . Exploration | -11 -10 -10 ------------- Run | Jun Mat Min Turns Passed 2278 | 250 1731 297 Spaces Moved 1810 | 173 1277 360 Core 3 | 1 . 2 Treads 2 | 2 . . Legs 780 | . 780 . Wheels 412 | 170 242 . Hover 613 | . 255 358 Flight . | . . . Fastest Speed 50 | 50 56 56 Average Speed 91 | 80 103 56 Slowest Speed 260 | 160 260 200 Overloaded Moves . | . . . Propulsion Burnouts . | . . . Robots Hopped . | . . . Cave-ins Triggered . | . . . Exploration Rate (%) 55 | 10 92 65 Regions Visited 2 Branch Regions 1 Pre-discovered Areas 1 | . . 1 Known Exits Taken 1 | . 1 . Unknown Exits Taken 1 | 1 . . Scrap Searched 1 | . . 1 Spaces Dug 10 | . 1 9 Terrain Destroyed 59 | 7 21 31 Melee . | . . . Projectile 1 | . 1 . AOE 58 | 7 20 31 Terrain Rammed . | . . . Walls Destroyed . | . . . Machines Disabled . | . . . Actions | -11 -10 -10 --------- Run | Jun Mat Min Total 2270 | 274 1588 408 Wait 140 | 73 60 7 Move 1808 | 172 1276 360 Hop . | . . . Pick Up 67 | 10 53 4 Fast Attach 21 | 8 13 . Attach 10 | . 9 1 Detach 15 | 1 14 . Swap 43 | 3 31 9 Drop 69 | 4 62 3 Fire 85 | 3 58 24 Melee 7 | . 7 . Ram . | . . . Kick 5 | . 5 . Crush . | . . . Escape Stasis . | . . . Rewire . | . . . Trap . | . . . Miscellaneous . | . . . Route ------- -11/Junkyard -10/Materials (discovered 4 exits: *Mat x3 / *Min) -10/Mines (discovered 2 exits: *Mat x2) History --------- Turn | Location | Event 9 | -11/Junkyard | Discovered new exit (range 15) 251 | -11/Junkyard | Entered Materials 310 | -10/Materials | Build established: Mutant 495 | -10/Materials | Discovered new exit (range 3) 606 | -10/Materials | Identified exit to Mines 785 | -10/Materials | Discovered new exit (range 3) 1090 | -10/Materials | Discovered new exit (range 10) 1267 | -10/Materials | Repaired Hrd. Light Armor Plating? 1333 | -10/Materials | Identified exit to Materials 1946 | -10/Materials | Repaired Heat Sink 1972 | -10/Materials | Repaired Beam Cannon 1982 | -10/Materials | Entered Mines 2035 | -10/Mines | Discovered exit to Materials (range 11) 2098 | -10/Mines | Learned location of Recycling (-9) 2111 | -10/Mines | Discovered exit to Materials (range 6) 2149 | -10/Mines | Assembled infested the area 2232 | -10/Mines | Core integrity fell below 50% 2262 | -10/Mines | Found a hidden stash of uninstalled traps 2275 | -10/Mines | Core integrity fell below 20% 2279 | -10/Mines | Destroyed by D-53 Grenadier with Mini Grenade Launcher Last Messages --------------- 02185_ K-01 Serf collects debris. 02185_ Acquired Propulsion Shielding. 02188_ Acquired 18 matter. 02191_ K-01 Serf collects debris. 02228_ Critical hit (Burn: +37). 02230_ K-01 Serf collects debris. 02243_ K-01 Serf destroyed. 02243_ K-01 Serf collects debris. 02245_ Beam Cannon destroyed. 02246_ Critical hit (Burn: +37). 02246_ K-01 Serf collects debris. 02248_ T-07 Excavator destroyed. 02250_ K-01 Serf collects debris. 02250_ Acquired 13 matter. 02264_ Acquired EMP Trap. 02267_ Dropped Heat Sink. 02270_ Propulsion Shielding destroyed. 02274_ Lgt. Ion Engine destroyed. 02276_ Imp. Hover Unit destroyed. Map ----- +----------------------------------------------------+ | ??????????# ### ##??## ##??????? | | ??????????# ##?## ##????# ##???????? | | ??????????# ##???## ##?????# #????????? | | ????####??# ###???## #??????# #????????? | | ???## ##?## ##???## ?????# #????????? | | ?### #### #????## ###????# #????????? | | ## ## #?????# #??????# #?####???? | | =% ##?????## #?# #### ## ##??? | | ##???????###?# # ##?? | | # ##???????????###### #?? | | ## = #????????????????# #?? | | ## # #???????????????# ##?? | | ##!!## #??????????###??## ##??? | | ### ## ##?????????## ##?# ##??? | | #?# ## ##??????????# ### #??? | | #?# ## ##???????????# #??? | | #?# #####???????####??# ##??? | | ### #??????????## ##?## ##???? | | ## #??????#??## ##?# ##???? | | ! ! #?????## ## ### #???? | | ##=###?????# ## ## #???? | | #### #???????# ! ### #### #???? | | ##??# #???????## / ##?# ##??? #???? | | #??# ######?######### #??# #???? #???? | | #??# #?# #??# #???? ##???? | | #?###### #?# @ #### #???? ##????? | | ##?????## ### #???? #?????? | | #?????## ## d #### #????##?????? | | ####?????# d #??# #???????????? | | ????????## # # # ?# #???????????? | | ???????## # ######## #???????????? | | ???????# ###???????? #####???????????? | | ???????# #????????? u#???????????????? | | ???????## #????????? #???????????????? | | ????????# #????????? #???????????????? | | ????????## ! ##????????? ???????????????? | | ?????????# #???????????? ??????????????? | | ?????????# & #???????????? #??????????????? | | ?????????# ##????????????? #??????????????? | | ?????????######??????????????##??????????????? | | ?????????????????????????????????????????????? | | ?????????????????????????????????????????????? | | ?????????????????????????????????????????????? | | | | | | | | | | | | | | | +----------------------------------------------------+ Best States ------------- Heat Dissipation 35 Energy Generation 10 Energy Capacity 250 Matter Stores 400 Matter Capacity 400 Sight Range 16 Terrain Scan Density 10 Armor Coverage 80 Resistance: KI 20 Resistance: TH 20 Resistance: EX 20 Resistance: EM 20 Resistance: I 20 Resistance: S 20 Resistance: P 20 Propulsion Shielding 33 Evasion (%) 55 Targeting Accuracy 5 Recoil Reduction 1 Offensive Hacking 10 Item Schematics ----------------- None Robot Schematics ------------------ None Fabricated ------------ Nothing Alien Tech Used ----------------- None Achievements -------------- None Challenges ------------ None Game ------ Seed HelicalGatlingShotgun Manual? 0 Play Time 01:13:30 Cumulative 254.5 hours Start 2023.12.03 @ 17:47:01 End 2023.12.03 @ 19:05:10 Sessions 1 Manual Loads 0 Difficulty Adventurer Special Mode None Game No. 90 Rogue 80 Adventurer 10 Explorer 0 Win Type - Total 0 Types 0/0/0/0/0/0/0/0/0 Lore% 42 Gallery% 44 Achievement% 61 Wizard Run 0 Options --------- ASCII 0 Keyboard 1 Movement Vi Keybinds 0 Fullscreen 1 Font 18/SmallcapsGlow Map View 76x50 Tactical HUD 1 Map Filters NONE Filters NONE Steam 1 RUN: 994c234f-1f9f-491b-9e13-31c7ecd56012